fUST/lending_fUST_20251217
["ID","MTS","AMOUNT","RATE_DAILY","PERIOD"]
[398828097,1765917095095,-6962.66,0.0003755,120]
[398828098,1765917095140,-500.0,0.0003755,120]
[398828099,1765917095186,-674.53,0.0003755,120]
[398828100,1765917095234,-896.13,0.0003755,120]
[398828101,1765917095283,-2447.84,0.0003755,120]
[398828102,1765917095329,-500.0,0.0003755,120]
[398828103,1765917095374,-500.0,0.0003755,120]
[398828104,1765917095474,-6962.66,0.0003755,120]
[398828105,1765917095520,-665.72,0.0003755,120]
[398828106,1765917095567,-958.33,0.0003755,120]
[398828107,1765917095613,-674.53,0.0003755,120]
[398828108,1765917095659,-896.13,0.0003755,120]
[398828109,1765917095703,-2447.84,0.0003755,120]
[398828110,1765917095748,-500.0,0.0003755,120]
[398828111,1765917095794,-500.0,0.0003755,120]
[398828112,1765917095838,-500.0,0.0003755,120]
[398828113,1765917095882,-365.81045195,0.0003755,120]
[398828114,1765917095927,-6962.66,0.0003755,120]
[398828115,1765917095973,-665.72,0.0003755,120]
[398828116,1765917096021,-674.53,0.0003755,120]
[398828117,1765917096068,-896.13,0.0003755,120]
[398828118,1765917096112,-958.33,0.0003755,120]
[398828119,1765917096158,-500.0,0.0003755,120]
[398828120,1765917096204,-160.38204237,0.0003755,120]
[398828121,1765917096248,-500.0,0.0003755,120]
[398828122,1765917096293,-6962.66,0.0003755,120]
[398828123,1765917096337,-2447.84,0.0003755,120]
[398828124,1765917096382,-665.72,0.0003755,120]
[398828125,1765917096427,-674.53,0.0003755,120]
[398828126,1765917096471,-958.33,0.0003755,120]
[398828127,1765917096514,-500.0,0.0003755,120]
[398828128,1765917096558,-500.0,0.0003755,120]
[398828129,1765917096603,-896.13,0.0003755,120]
[398828130,1765917096647,-6962.66,0.0003755,120]
[398828131,1765917096690,-665.72,0.0003755,120]
[398828132,1765917096734,-674.53,0.0003755,120]
[398828133,1765917096777,-2447.84,0.0003755,120]
[398828134,1765917096820,-958.33,0.0003755,120]
[398828135,1765917096905,-500.0,0.0003755,120]
[398828136,1765917096950,-259.64539987,0.0003755,120]
[398828137,1765917096994,-896.34424564,0.0003755,120]
[398828138,1765917097039,-674.53,0.0003755,120]
[398828139,1765917097084,-2447.84,0.0003755,120]
[398828140,1765917097127,-6962.66,0.0003755,120]
[398828141,1765917097171,-665.72,0.0003755,120]
[398828142,1765917097216,-500.0,0.0003755,120]
[398828143,1765917097260,-958.33,0.0003755,120]
[398828144,1765917097312,-674.53,0.0003755,120]
[398828145,1765917097360,-6962.66,0.0003755,120]
[398828146,1765917097404,-665.72,0.0003755,120]
[398828147,1765917097450,-2447.84,0.0003755,120]
[398828148,1765917097494,-500.0,0.0003755,120]
[398828149,1765917097538,-958.33,0.0003755,120]
[398828150,1765917097581,-674.53,0.0003755,120]
[398828151,1765917097624,-2447.84,0.0003755,120]
[398828152,1765917097668,-665.72,0.0003755,120]
[398828153,1765917097711,-6962.66,0.0003755,120]
[398828154,1765917097755,-500.0,0.0003755,120]
[398828155,1765917097798,-958.33,0.0003755,120]
[398828156,1765917097841,-674.53,0.0003755,120]
[398828157,1765917097903,-665.72,0.0003755,120]
[398828158,1765917097949,-2447.84,0.0003755,120]
[398828159,1765917097995,-6962.66,0.0003755,120]
[398828160,1765917098040,-2576.2,0.0003755,120]
[398828161,1765917098086,-500.0,0.0003755,120]
[398828162,1765917098132,-674.53,0.0003755,120]
[398828163,1765917098179,-958.33,0.0003755,120]
[398828164,1765917098225,-665.72,0.0003755,120]
[398828165,1765917098273,-6962.66,0.0003755,120]
[398828166,1765917098318,-2447.84,0.0003755,120]
[398828167,1765917098362,-2576.2,0.0003755,120]
[398828168,1765917098407,-413.8703013,0.0003755,120]
[398828169,1765917098451,-674.53,0.0003755,120]
[398828170,1765917098494,-958.33,0.0003755,120]
[398828171,1765917098537,-665.72,0.0003755,120]
[398828172,1765917098582,-2447.84,0.0003755,120]
[398828173,1765917098626,-2576.2,0.0003755,120]
[398828174,1765917098673,-674.71248866,0.0003755,120]
[398828175,1765917098720,-958.33,0.0003755,120]
[398828176,1765917098767,-665.72,0.0003755,120]
[398828177,1765917098812,-2447.84,0.0003755,120]
[398828178,1765917098861,-2576.2,0.0003755,120]
[398828179,1765917098916,-6962.66,0.0003755,120]
[398828180,1765917098966,-958.33,0.0003755,120]
[398828181,1765917099024,-665.72,0.0003755,120]
[398828182,1765917099074,-2447.84,0.0003755,120]
[398828183,1765917099123,-2576.2,0.0003755,120]
[398828184,1765917099171,-1091.9,0.0003755,120]
[398828185,1765917099221,-6962.66,0.0003755,120]
[398828186,1765917099270,-958.33,0.0003755,120]
[398828187,1765917099320,-665.72,0.0003755,120]
[398828188,1765917099367,-2447.84,0.0003755,120]
[398828189,1765917099414,-2576.2,0.0003755,120]
[398828190,1765917099461,-1091.9,0.0003755,120]
[398828191,1765917099508,-6962.66,0.0003755,120]
[398828192,1765917099554,-958.33,0.0003755,120]
[398828193,1765917099600,-665.72,0.0003755,120]
[398828194,1765917099647,-2576.2,0.0003755,120]
[398828195,1765917099692,-1091.9,0.0003755,120]
[398828196,1765917099740,-6962.66,0.0003755,120]
[398828197,1765917099786,-665.84123392,0.0003755,120]
[398828198,1765917099833,-958.33,0.0003755,120]
[398828199,1765917100085,-2576.2,0.0003755,120]
[398828200,1765917100134,-1091.9,0.0003755,120]
[398828201,1765917100182,-2447.84,0.0003755,120]
[398828202,1765917100229,-6962.84382547,0.0003755,120]
[398828203,1765917100277,-958.33,0.0003755,120]
[398828204,1765917100326,-2576.2,0.0003755,120]
[398828205,1765917100372,-1091.9,0.0003755,120]
[398828206,1765917100418,-2447.84,0.0003755,120]
[398828207,1765917100463,-958.33,0.0003755,120]
[398828208,1765917100507,-2576.2,0.0003755,120]
[398828209,1765917100550,-1091.9,0.0003755,120]
[398828210,1765917100594,-2447.84,0.0003755,120]
[398828211,1765917100637,-2576.2,0.0003755,120]
[398828212,1765917100679,-958.46536326,0.0003755,120]
[398828213,1765917100723,-2447.84,0.0003755,120]
[398828214,1765917100767,-1091.9,0.0003755,120]
[398828215,1765917100812,-2576.2,0.0003755,120]
[398828216,1765917100857,-2447.84,0.0003755,120]
[398828217,1765917100901,-1091.9,0.0003755,120]
[398828218,1765917100946,-2576.2,0.0003755,120]
[398828219,1765917100992,-2447.84,0.0003755,120]
[398828220,1765917101040,-1091.9,0.0003755,120]
[398828221,1765917101088,-2576.2,0.0003755,120]
[398828222,1765917101135,-2447.84,0.0003755,120]
[398828223,1765917101182,-1091.9,0.0003755,120]
[398828224,1765917101229,-500.0,0.0003755,120]
[398828225,1765917101277,-2576.2,0.0003755,120]
[398828226,1765917101321,-2447.84,0.0003755,120]
[398828227,1765917101366,-1091.9,0.0003755,120]
[398828228,1765917101407,-500.0,0.0003755,120]
[398828229,1765917101449,-2576.2,0.0003755,120]
[398828230,1765917101490,-2447.84,0.0003755,120]
[398828231,1765917101532,-2466.04,0.0003755,120]
[398828232,1765917101574,-173.96324281,0.0003755,120]
[398828233,1765917101615,-1091.9,0.0003755,120]
[398828234,1765917101655,-2576.2,0.0003755,120]
[398828235,1765917101695,-500.0,0.0003755,120]
[398828236,1765917101736,-2447.84,0.0003755,120]
[398828237,1765917101776,-2466.04,0.0003755,120]
[398828238,1765917101815,-1091.9,0.0003755,120]
[398828239,1765917101858,-2576.2,0.0003755,120]
[398828240,1765917101900,-500.0,0.0003755,120]
[398828241,1765917101946,-2466.04,0.0003755,120]
[398828242,1765917101991,-1091.9,0.0003755,120]
[398828243,1765917102036,-500.0,0.0003755,120]
[398828244,1765917102081,-2576.2,0.0003755,120]
[398828245,1765917102127,-2466.04,0.0003755,120]
[398828246,1765917102171,-1091.9,0.0003755,120]
[398828247,1765917102216,-304.71227289,0.0003755,120]
[398828248,1765917102263,-2576.2,0.0003755,120]
[398828249,1765917102314,-2466.04,0.0003755,120]
[398828250,1765917102359,-1091.9,0.0003755,120]
[398828251,1765917102403,-2576.2,0.0003755,120]
[398828252,1765917102449,-2466.04,0.0003755,120]
[398828253,1765917102495,-500.0,0.0003755,120]
[398828254,1765917102540,-1091.9,0.0003755,120]
[398828255,1765917102583,-2576.2,0.0003755,120]
[398828256,1765917102625,-1840.16,0.0003755,120]
[398828257,1765917102669,-2466.04,0.0003755,120]
[398828258,1765917102712,-500.0,0.0003755,120]
[398828259,1765917102755,-1091.9,0.0003755,120]
[398828260,1765917102798,-2466.04,0.0003755,120]
[398828261,1765917102843,-2576.2,0.0003755,120]
[398828262,1765917102888,-1840.16,0.0003755,120]
[398828263,1765917102933,-500.0,0.0003755,120]
[398828264,1765917102976,-1091.9,0.0003755,120]
[398828265,1765917103021,-2466.04,0.0003755,120]
[398828266,1765917103068,-2576.42525121,0.0003755,120]
[398828267,1765917103114,-1840.16,0.0003755,120]
[398828268,1765917103163,-500.0,0.0003755,120]
[398828269,1765917103209,-1091.9,0.0003755,120]
[398828270,1765917103256,-2466.04,0.0003755,120]
[398828271,1765917103304,-1840.16,0.0003755,120]
[398828272,1765917103351,-500.0,0.0003755,120]
[398828273,1765917103397,-1091.9,0.0003755,120]
[398828274,1765917103442,-2466.04,0.0003755,120]
[398828275,1765917103489,-1840.16,0.0003755,120]
[398828276,1765917103534,-500.0,0.0003755,120]
[398828277,1765917103577,-2466.04,0.0003755,120]
[398828278,1765917103622,-500.0,0.0003755,120]
[398828279,1765917103667,-1840.16,0.0003755,120]
[398828280,1765917103710,-1091.9,0.0003755,120]
[398828281,1765917103753,-500.0,0.0003755,120]
[398828282,1765917103798,-2466.04,0.0003755,120]
[398828283,1765917103844,-500.0,0.0003755,120]
[398828284,1765917104165,-1091.9,0.0003755,120]
[398828285,1765917104213,-1840.16,0.0003755,120]
[398828286,1765917104259,-500.0,0.0003755,120]
[398828287,1765917104307,-2466.04,0.0003755,120]
[398828288,1765917104355,-500.0,0.0003755,120]
[398828289,1765917104403,-1091.96375067,0.0003755,120]
[398828290,1765917104449,-500.0,0.0003755,120]
[398828291,1765917104495,-1840.16,0.0003755,120]
[398828292,1765917104542,-2466.04,0.0003755,120]
[398828293,1765917104590,-500.0,0.0003755,120]
[398828294,1765917104636,-500.0,0.0003755,120]
[398828295,1765917104682,-1840.16,0.0003755,120]
[398828296,1765917104729,-2466.04,0.0003755,120]
[398828297,1765917104775,-500.0,0.0003755,120]
[398828298,1765917104821,-500.0,0.0003755,120]
[398828299,1765917104868,-1840.16,0.0003755,120]
[398828300,1765917104915,-2466.04,0.0003755,120]
[398828301,1765917104961,-535.52,0.0003755,120]
[398828302,1765917105007,-500.0,0.0003755,120]
[398828303,1765917105055,-1840.16,0.0003755,120]
[398828304,1765917105102,-2466.04,0.0003755,120]
[398828305,1765917105150,-500.0,0.0003755,120]
[398828306,1765917105199,-1840.16,0.0003755,120]
[398828307,1765917105246,-2466.04,0.0003755,120]
[398828308,1765917105293,-500.0,0.0003755,120]
[398828309,1765917105339,-1840.16,0.0003755,120]
[398828310,1765917105387,-1075.41,0.0003755,120]
[398828311,1765917105435,-2466.04,0.0003755,120]
[398828312,1765917105481,-500.0,0.0003755,120]
[398828313,1765917105529,-1840.16,0.0003755,120]
[398828314,1765917105575,-1075.41,0.0003755,120]
[398828315,1765917105621,-2466.04,0.0003755,120]
[398828316,1765917105668,-500.0,0.0003755,120]
[398828317,1765917105715,-1840.16,0.0003755,120]
[398828318,1765917105764,-1075.41,0.0003755,120]
[398828319,1765917105808,-630.92,0.0003755,120]
[398828320,1765917105854,-2466.04,0.0003755,120]
[398828321,1765917105901,-500.0,0.0003755,120]
[398828322,1765917105947,-1840.16,0.0003755,120]
[398828323,1765917105991,-1075.41,0.0003755,120]
[398828324,1765917106036,-630.92,0.0003755,120]
[398828325,1765917106082,-2466.04,0.0003755,120]
[398828326,1765917106127,-500.0,0.0003755,120]
[398828327,1765917106174,-1840.16,0.0003755,120]
[398828328,1765917106220,-1075.41,0.0003755,120]
[398828329,1765917106269,-630.92,0.0003755,120]
[398828330,1765917106321,-500.0,0.0003755,120]
[398828331,1765917106368,-2466.04434386,0.0003755,120]
[398828332,1765917106414,-1840.16,0.0003755,120]
[398828333,1765917106460,-500.0,0.0003755,120]
[398828334,1765917106504,-1075.41,0.0003755,120]
[398828335,1765917106550,-630.92,0.0003755,120]
[398828336,1765917106596,-500.0,0.0003755,120]
[398828337,1765917106641,-1840.16,0.0003755,120]
[398828338,1765917106687,-500.0,0.0003755,120]
[398828339,1765917106730,-1075.41,0.0003755,120]
[398828340,1765917106773,-630.92,0.0003755,120]
[398828341,1765917106817,-500.0,0.0003755,120]
[398828342,1765917106863,-542.66,0.0003755,120]
[398828343,1765917106908,-1840.16,0.0003755,120]
[398828344,1765917106953,-1075.41,0.0003755,120]
[398828345,1765917107001,-500.0,0.0003755,120]
[398828346,1765917107048,-630.92,0.0003755,120]
[398828347,1765917107094,-1840.16,0.0003755,120]
[398828348,1765917107140,-1075.41,0.0003755,120]
[398828349,1765917107185,-500.0,0.0003755,120]
[398828350,1765917107287,-630.92,0.0003755,120]
[398828351,1765917107334,-1840.16,0.0003755,120]
[398828352,1765917107382,-1075.41,0.0003755,120]
[398828353,1765917107427,-500.0,0.0003755,120]
[398828354,1765917107472,-1087.8,0.0003755,120]
[398828355,1765917107522,-630.92,0.0003755,120]
[398828356,1765917107571,-1840.16,0.0003755,120]
[398828357,1765917107616,-500.0,0.0003755,120]
[398828358,1765917107668,-1075.41,0.0003755,120]
[398828359,1765917107716,-1087.8,0.0003755,120]
[398828360,1765917107760,-1840.38624304,0.0003755,120]
[398828361,1765917107802,-630.92,0.0003755,120]
[398828362,1765917107845,-585.30361103,0.0003755,120]
[398828363,1765917107888,-1075.41,0.0003755,120]
[398828364,1765917107932,-1087.8,0.0003755,120]
[398828365,1765917107975,-500.0,0.0003755,120]
[398828366,1765917108018,-630.92,0.0003755,120]
[398828367,1765917108061,-1075.41,0.0003755,120]
[398828368,1765917108105,-1087.8,0.0003755,120]
[398828369,1765917108149,-500.0,0.0003755,120]
[398828370,1765917108194,-630.92,0.0003755,120]
[398828371,1765917108238,-1075.41,0.0003755,120]
[398828372,1765917108284,-1087.8,0.0003755,120]
[398828373,1765917108329,-500.0,0.0003755,120]
[398828374,1765917108375,-630.92,0.0003755,120]
[398828375,1765917108419,-1075.41,0.0003755,120]
[398828376,1765917108463,-693.43,0.0003755,120]
[398828377,1765917108507,-1087.8,0.0003755,120]
[398828378,1765917108556,-500.0,0.0003755,120]
[398828379,1765917108600,-630.92,0.0003755,120]
[398828380,1765917108642,-441.85619469,0.0003755,120]
[398828381,1765917108685,-1087.8,0.0003755,120]
[398828382,1765917108727,-693.43,0.0003755,120]
[398828383,1765917108773,-630.92,0.0003755,120]
[398828384,1765917108819,-170.77675711,0.0003755,120]
[398828385,1765917112178,-466.66267354,0.000185,7]
[398828386,1765917112225,-164.0,0.000186,5]
[398828387,1765917112279,-1000.0,0.00018827,10]
[398828388,1765917112329,-791.0,0.00018827,10]
[398828389,1765917112375,-169.38,0.00019,10]
[398828390,1765917112422,-500.0,0.00019,7]
[398828391,1765917112468,-292.61,0.00019,10]
[398828392,1765917112514,-250.0,0.00019,10]
[398828393,1765917112565,-164.0,0.000205,6]
[398828394,1765917112613,-1000.0,0.0002071,10]
[398828395,1765917112661,-1000.0,0.0002071,10]
[398828396,1765917112706,-164.0,0.00021,7]
[398828397,1765917112751,-15000.0,0.00021,10]
[398828398,1765917112892,-1363.03902027,0.00021949,7]
[398828399,1765917112938,-20000.0,0.00022,7]
[398828400,1765917112983,-198.08824625,0.00022,7]
[398828401,1765917113033,-1000.0,0.00022781,10]
[398828402,1765917113084,-1000.0,0.00022781,10]
[398828403,1765917113134,-579.0,0.00022781,10]
[398828404,1765917113182,-151.0,0.00023014,7]
[398828405,1765917113228,-20000.0,0.000232,7]
[398828406,1765917113276,-258.2,0.000239,7]
[398828407,1765917113323,-1299.66,0.000242,14]
[398828408,1765917113485,-168.0,0.00024356,13]
[398828409,1765917113532,-20000.0,0.000244,7]
[398828410,1765917113580,-200.0,0.00024658,15]
[398828411,1765917113626,-189.72,0.00025,5]
[398828412,1765917113672,-14000.0,0.00025,10]
[398828413,1765917113718,-10000.0,0.00025,7]
[398828414,1765917113767,-221.0,0.00025,5]
[398828415,1765917113814,-221.0,0.00025,5]
[398828416,1765917113863,-198.08824625,0.00025,7]
[398828417,1765917113911,-198.08824625,0.00025,10]
[398828418,1765917113962,-1000.0,0.00025059,10]
[398828419,1765917114012,-1000.0,0.00025059,10]
[398828420,1765917114063,-1000.0,0.00025059,10]
[398828421,1765917114109,-500.49,0.000251,7]
[398828422,1765917114156,-20000.0,0.000254,7]
[398828423,1765917114203,-187.86,0.000254,7]
[398828424,1765917114250,-39698.41253011,0.00026,10]
[398828425,1765917114297,-198.08824625,0.00026,10]
[398828426,1765917114344,-59199.52070559,0.00026,30]
[398828427,1765917114392,-20000.0,0.000265,7]
[398828428,1765917114440,-1299.66,0.000267,14]
[398828429,1765917114488,-198.08824625,0.00027,7]
[398828430,1765917114535,-1113.79969647,0.0002734,10]
[398828431,1765917114580,-567.43083247,0.0002739,7]
[398828432,1765917114626,-650.0,0.00027397,5]
[398828433,1765917114672,-151.0,0.00027397,7]
[398828434,1765917114718,-151.0,0.00027397,7]
[398828435,1765917114764,-151.0,0.00027397,7]
[398828436,1765917114811,-151.0,0.00027397,7]
[398828437,1765917114858,-151.0,0.00027397,7]
[398828438,1765917114905,-151.0,0.00027397,7]
[398828439,1765917114951,-151.0,0.00027397,7]
[398828440,1765917114998,-151.0,0.00027397,7]
[398828441,1765917115045,-151.0,0.00027397,7]
[398828442,1765917115093,-151.0,0.00027397,7]
[398828443,1765917115141,-151.0,0.00027397,7]
[398828444,1765917115188,-151.0,0.00027397,7]
[398828445,1765917115236,-151.0,0.00027397,7]
[398828446,1765917115286,-151.0,0.00027397,7]
[398828447,1765917115335,-151.0,0.00027397,7]
[398828448,1765917115384,-151.0,0.00027397,7]
[398828449,1765917115431,-151.0,0.00027397,7]
[398828450,1765917115478,-151.0,0.00027397,7]
[398828451,1765917115523,-234.921276,0.00027397,7]
[398828452,1765917115568,-151.0,0.00027397,7]
[398828453,1765917115613,-151.0,0.00027397,7]
[398828454,1765917115659,-151.0,0.00027397,7]
[398828455,1765917115704,-151.0,0.00027397,7]
[398828456,1765917115749,-151.0,0.00027397,7]
[398828457,1765917115793,-151.0,0.00027397,7]
[398828458,1765917115840,-151.0,0.00027397,7]
[398828459,1765917115886,-151.0,0.00027397,7]
[398828460,1765917115934,-151.0,0.00027397,7]
[398828461,1765917115980,-151.0,0.00027397,7]
[398828462,1765917116026,-151.0,0.00027397,7]
[398828463,1765917116072,-151.0,0.00027397,7]
[398828464,1765917116118,-192.51099,0.00027397,7]
[398828465,1765917116166,-151.0,0.00027397,7]
[398828466,1765917116212,-151.0,0.00027397,7]
[398828467,1765917116257,-151.0,0.00027397,7]
[398828468,1765917116306,-151.0,0.00027397,7]
[398828469,1765917116355,-151.0,0.00027397,7]
[398828470,1765917116400,-151.0,0.00027397,7]
[398828471,1765917116446,-151.0,0.00027397,7]
[398828472,1765917116492,-227.203687,0.00027397,7]
[398828473,1765917116538,-394.955606,0.00027397,7]
[398828474,1765917116582,-394.955606,0.00027397,7]
[398828475,1765917116625,-394.955606,0.00027397,7]
[398828476,1765917116669,-394.955606,0.00027397,7]
[398828477,1765917116714,-394.955606,0.00027397,7]
[398828478,1765917116760,-394.955606,0.00027397,7]
[398828479,1765917116805,-394.955606,0.00027397,7]
[398828480,1765917116850,-394.955606,0.00027397,7]
[398828481,1765917116896,-394.955606,0.00027397,7]
[398828482,1765917116943,-394.955606,0.00027397,7]
[398828483,1765917116989,-394.955606,0.00027397,7]
[398828484,1765917117035,-394.955606,0.00027397,7]
[398828485,1765917117082,-394.955606,0.00027397,7]
[398828486,1765917117128,-394.955606,0.00027397,7]
[398828487,1765917117175,-394.955606,0.00027397,7]
[398828488,1765917117223,-394.955606,0.00027397,7]
[398828489,1765917117271,-394.955606,0.00027397,7]
[398828490,1765917117321,-394.955606,0.00027397,7]
[398828491,1765917117367,-394.955606,0.00027397,7]
[398828492,1765917117413,-394.955607,0.00027397,7]
[398828493,1765917117460,-500.0,0.00027397,5]
[398828494,1765917117507,-577.29002164,0.00027397,5]
[398828495,1765917117552,-150.0,0.00027397,5]
[398828496,1765917117598,-20000.0,0.000274,7]
[398828497,1765917117923,-178.0,0.00027644,14]
[398828498,1765917117971,-1000.0,0.00027945,5]
[398828499,1765917118019,-750.0,0.00027945,5]
[398828500,1765917118066,-250.0,0.00027945,5]
[398828501,1765917118112,-312915.14913996,0.00028,7]
[398828502,1765917118158,-11900.0,0.00028,10]
[398828503,1765917118206,-377.999999,0.00028,7]
[398828504,1765917118255,-850.0,0.00028493,5]
[398828505,1765917118302,-336.21617501,0.00028493,5]
[398828506,1765917118351,-350.0,0.00028493,5]
[398828507,1765917118397,-331.81994133,0.000285,7]
[398828508,1765917118444,-4000.0,0.0002876,5]
[398828509,1765917118491,-171.90485998,0.000288,7]
[398828510,1765917118538,-151.0,0.00028997,14]
[398828511,1765917118598,-508.39444981,0.00029,7]
[398828512,1765917118649,-2403.08376314,0.00029,10]
[398828513,1765917118699,-2040.88295197,0.00029,15]
[398828514,1765917118748,-20000.0,0.00029,7]
[398828515,1765917118798,-950.0,0.00029041,5]
[398828516,1765917118846,-450.0,0.00029041,5]
[398828517,1765917118894,-21632.70657,0.00029402,8]
[398828518,1765917118945,-1050.0,0.00029589,5]
[398828519,1765917118994,-550.0,0.00029589,5]
[398828520,1765917119044,-165.46,0.0003,5]
[398828521,1765917119094,-24452.9,0.0003,5]
[398828522,1765917119141,-31196.18894804,0.0003,10]
[398828523,1765917119190,-198.08824625,0.0003,10]
[398828524,1765917119239,-1127.31473226,0.00030137,5]
[398828525,1765917119287,-650.0,0.00030137,5]
[398828526,1765917119334,-750.0,0.00030685,5]
[398828527,1765917119384,-1299.66,0.000307,14]
[398828528,1765917119434,-160.0,0.00030725,5]
[398828529,1765917119484,-175.0,0.00030932,14]
[398828530,1765917119533,-20699.57,0.00031,6]
[398828531,1765917119582,-850.0,0.00031233,5]
[398828532,1765917119635,-950.0,0.00031781,5]
[398828533,1765917119684,-955.24513611,0.00032329,5]
[398828534,1765917119736,-500.0,0.00032877,7]
[398828535,1765917119785,-500.0,0.00032877,7]
[398828536,1765917119835,-500.0,0.00032877,7]
[398828537,1765917119887,-500.0,0.00032877,7]
[398828538,1765917119940,-500.0,0.00032877,7]
[398828539,1765917119990,-500.0,0.00032877,7]
[398828540,1765917120043,-500.0,0.00032877,7]
[398828541,1765917120096,-500.0,0.00032877,7]
[398828542,1765917120147,-500.0,0.00032877,7]
[398828543,1765917120201,-481.93534442,0.00032877,7]
[398828544,1765917120259,-500.0,0.00032877,7]
[398828545,1765917120319,-500.0,0.00032877,7]
[398828546,1765917120375,-500.0,0.00032877,7]
[398828547,1765917120426,-500.0,0.00032877,7]
[398828548,1765917120476,-500.0,0.00032877,7]
[398828549,1765917120527,-500.0,0.00032877,7]
[398828550,1765917120577,-500.0,0.00032877,7]
[398828551,1765917120624,-500.0,0.00032877,7]
[398828552,1765917120669,-500.0,0.00032877,7]
[398828553,1765917120720,-500.0,0.00032877,7]
[398828554,1765917120767,-500.0,0.00032877,7]
[398828555,1765917120813,-500.0,0.00032877,7]
[398828556,1765917120860,-500.0,0.00032877,7]
[398828557,1765917120907,-500.0,0.00032877,7]
[398828558,1765917120955,-500.0,0.00032877,7]
[398828559,1765917121003,-500.0,0.00032877,7]
[398828560,1765917121050,-500.0,0.00032877,7]
[398828561,1765917121097,-500.0,0.00032877,7]
[398828562,1765917121147,-500.0,0.00032877,7]
[398828563,1765917121194,-500.0,0.00032877,7]
[398828564,1765917121243,-500.0,0.00032877,7]
[398828565,1765917121293,-337.41809974,0.00032877,7]
[398828566,1765917121340,-500.0,0.00032877,7]
[398828567,1765917121388,-500.0,0.00032877,7]
[398828568,1765917121435,-500.0,0.00032877,7]
[398828569,1765917121482,-500.0,0.00032877,7]
[398828570,1765917121529,-500.0,0.00032877,7]
[398828571,1765917121575,-500.0,0.00032877,7]
[398828572,1765917121620,-500.0,0.00032877,7]
[398828573,1765917121666,-500.0,0.00032877,7]
[398828574,1765917121711,-198.08824625,0.00033,120]
[398828575,1765917121757,-27369.304983,0.00033009,6]
[398828576,1765917121802,-300.0,0.00034246,10]
[398828577,1765917121849,-201.06431406,0.00034246,10]
[398828578,1765917121895,-1299.66,0.000348,30]
[398828579,1765917121940,-4070.83610388,0.00035,7]
[398828580,1765917121987,-16839.0,0.000352,120]
[398828581,1765917122033,-27354.207846,0.0003567,5]
[398828582,1765917122080,-159.0,0.00036411,88]
[398828583,1765917122125,-27032.95,0.00036443,5]
[398828584,1765917122171,-179.80221756,0.00037534,18]
[398828585,1765917122217,-155.4875584,0.0003755,10]
[398828586,1765917123149,-20000.0,0.00038,7]
[398828587,1765917123200,-33763.72,0.00038,14]
[398828588,1765917123250,-22703.9476,0.0003843,9]
[398828589,1765917123298,-1053.790113,0.0003998,13]
[398828590,1765917123346,-277.04880209,0.0004,10]
[398828591,1765917123395,-1000.0,0.0004,13]
[398828592,1765917123441,-150.0,0.0004,120]
[398828593,1765917123488,-22906.22,0.0004065,7]
[398828594,1765917123533,-151.0,0.000407,17]
[398828595,1765917123579,-2326.87,0.0004099,10]
[398828596,1765917123623,-100000.0,0.00041,10]